{"text_format":"1","workbook":"xlsx","n_sheets":1,"sheets":["2018"],"not_rendered":{"charts":0,"images":0,"macros":0,"external_links":0,"defined_names":0,"comments":0,"pivot_tables":0},"unopened":[],"bounds":{"document_bytes":16777216,"sheet_cells":100000,"rows_first":2000,"rows_last":500,"rows_between":2000,"halvings":0,"cell_chars":16384,"cell_head_chars":4096},"cells_cut":0,"cells_raw":0,"read":"whole","date_system":"1900"}

{"sheet":"2018","index":0,"n_rows":23,"n_cols":14,"rows_kept":23,"cut":false,"hidden":false,"merged":[[10,13,13,13],[6,3,6,5],[9,11,9,12],[10,0,14,0],[10,1,14,1],[10,2,14,2],[10,3,14,3],[10,4,14,4],[10,5,14,5],[10,6,14,6],[10,7,14,7],[10,8,14,8],[10,9,14,9],[10,10,14,10],[10,11,14,11],[10,12,13,12]]}
[]
[null,null,null,null,null,null,null,null,"Затверджую:"]
[null,null,null,null,null,null,null,null,"Голова комісії з припинення КП \"СРБД\" ДМР"]
[null,null,null,null,null,null,null,null,"А.М. Турчак"]
[null,null,null,null,null,null,null,null,"\"27\" червня 2018р."]
[]
[null,null,null,"ШТАТНИЙ РОЗКЛАД "]
[null,null,"                                                        Комунального підприємства \"Спеціалізована ремонтно-будівельна дільниця\" "]
[null,null,null,"Дніпропетровської міської ради"]
[null,null,null,null,null,null,null,null,null,null,null,"на\"01\" липня 2018р."]
["№ п/п","Назва структурного підрозділу","Назва посади (професії)","Код за класифікатором професі й","Кіль­кість штатних одиниць","Посадовий оклад, грн.","Доплати (до 50 % до посадового окладу), грн.","Надбавки (за використання в роботы дезинфікуючих та миючих засобів), грн.","ФОТ на 1 шт. од.","Місячний фонд заробітної плати, грн.","Примітка","Кіль­кість штатних одиниць","Відхилення","Примітки"]
[]
[]
[]
[]
[1,"Адміністрація","Директор","1210. 1",1,15240,{"$f":"F16*0.5","v":7620},null,{"$f":"F16+G16","v":22860},{"$f":"I16*E16","v":22860},null,1,{"$f":"L16-E16","v":0}]
[2,"Адміністрація","Заступник директора","1210. 1",1,12700,{"$f":"F17*0.5","v":6350},null,{"$f":"F17+G17","v":19050},{"$f":"I17*E17","v":19050},null,1,{"$f":"L17-E17","v":0}]
[3,"Адміністрація","Головний інженер","2149.2",1,12700,{"$f":"F18*0.5","v":6350},null,{"$f":"F18+G18","v":19050},{"$f":"I18*E18","v":19050},null,1,{"$f":"L18-E18","v":0}]
[null,null,"Разом:",null,3,null,null,null,null,60960,null,3,{"$f":"L19-E19","v":0}]
[4,"Бухгалтерія"]
[null,null,"Головний бухгалтер",1231,1,12700,{"$f":"F21*0.5","v":6350},null,{"$f":"F21+G21","v":19050},{"$f":"I21*E21","v":19050},null,1,0]
[null,null,"Разом:",null,{"$f":"SUM(E20:E21)","v":1},null,null,null,null,{"$f":"SUM(J20:J21)","v":19050},null,{"$f":"SUM(L20:L21)","v":1},0]
[null,"ВСЬОГО:",null,null,4,53340,26670,null,80010,80010,null,4,0]